Cogmind - Beta 15 @@@ ROGUE MODE // 2025.10.09 @ 17:03:32 Player: Galactipunk Result: Self-destructed Performance ------------- Evolutions (1) 500 Regions Visited (6) 1200 Robots Destroyed (54) 270 Value Destroyed (1349) 1349 Prototype IDs (4) 80 Alien Tech Used (0) 0 Bonus (298) 298 TOTAL SCORE: 3697 Bonus ------- High Alert Combat Kills 23 Aligned with FarCom 300 Friendly Fire -25 Cogmind --------- Core Integrity 12/400 Matter 237/300 Energy 185/185 System Corruption 18% Temperature Cool (56) Movement Walking (120) Location -8/Mines Parts ------- > --- POWER (2) -------- Light Ion Engine Light Nuclear Core > --- PROPULSION (2) --- Improved Aluminum Leg Carbon-fiber Leg > --- UTILITY (3) ------ Improved Heat Sink Medium Armor Plating Supersonic Drone Bay (0/1) > --- WEAPON (2) ------- Heavy Particle Cannon High-powered Shotgun > --- INVENTORY (5) ---- Particle Gun Shock Bomb Launcher Peak State ------------ > --- POWER ------------ Light Ion Engine Light Nuclear Core > --- PROPULSION ------- Improved Aluminum Leg Carbon-fiber Leg > --- UTILITY ---------- Improved Heat Sink Medium Armor Plating Supersonic Drone Bay > --- WEAPON ----------- Heavy Particle Cannon High-powered Shotgun > --- INVENTORY -------- Particle Gun Shock Bomb Launcher [Rating: 28] Favorites ----------- Power Light Ion Engine Engine Light Ion Engine Power Core Light Nuclear Core Propulsion Aluminum Leg Leg Aluminum Leg Utility Improved Heat Sink Device Improved Heat Sink Storage High-capacity Battery Processor Improved Targeting Computer Protection Medium Armor Plating Weapon High-powered Shotgun Energy Gun Medium Laser Energy Cannon Heavy Particle Cannon Ballistic Gun High-powered Shotgun Build | -11 -10 -10 -9 -9 -9 -8 ------- Run | Yrd Mat Min Mat Min Exi Min Slots Evolved 2 | . . . 2 . . . Power 1 | . . . 1 . . . Propulsion . | . . . . . . . Utility 1 | . . . 1 . . . Weapon . | . . . . . . . Parts Attached 43 | 6 2 6 20 8 1 . Power 11 | 1 . 2 6 2 . . Engine 9 | 1 . 1 6 1 . . Core 2 | . . 1 . 1 . . Reactor . | . . . . . . . Propulsion 11 | 2 . 2 3 4 . . Treads . | . . . . . . . Leg 11 | 2 . 2 3 4 . . Wheel . | . . . . . . . Hover . | . . . . . . . Flight . | . . . . . . . Utility 11 | 1 2 . 5 2 1 . Device 7 | . 1 . 3 2 1 . Storage 2 | 1 1 . . . . . Processor 1 | . . . 1 . . . Hackware . | . . . . . . . Protection 1 | . . . 1 . . . Artifact . | . . . . . . . Weapon 10 | 2 . 2 6 . . . Energy Gun 2 | 1 . . 1 . . . Energy Cannon 3 | . . 1 2 . . . Ballistic Gun 5 | 1 . 1 3 . . . Ballistic Cannon . | . . . . . . . Launcher . | . . . . . . . Special Weapon . | . . . . . . . Impact Weapon . | . . . . . . . Slashing Weapon . | . . . . . . . Piercing Weapon . | . . . . . . . Special Melee Weapon . | . . . . . . . Unidentified Prototypes 1 | . . . . . 1 . Parts Lost 12 | . . . 9 3 . . Power 2 | . . . 2 . . . Propulsion 2 | . . . 1 1 . . Utility 5 | . . . 4 1 . . Weapon 3 | . . . 2 1 . . Highest Loss Streak 5 | . . . 5 3 . . To Critical Strikes . | . . . . . . . Average Backups 2 | 1 2 3 2 2 2 2 Power . | . 1 1 . . . . Propulsion . | . . . . . . . Utility . | . . 1 . . . . Weapon 1 | . . 1 1 1 2 2 Tool/Special . | . . . . . . . Unused Backups 9 | 1 1 2 3 . . 2 Power 3 | . . 2 1 . . . Propulsion 2 | . 1 . 1 . . . Utility . | . . . . . . . Weapon 4 | 1 . . 1 . . 2 Tool/Special . | . . . . . . . Average Slot Usage (%) 95 | . 95 100 90 87 100 100 Engine 11 | . 14 . 16 13 11 11 Core 6 | . . 13 . 8 11 11 Leg 23 | . 28 28 21 20 22 22 Device 16 | . 8 14 15 16 22 22 Storage 7 | . 15 14 9 . . . Processor 2 | . . . 5 . . . Protection 3 | . . . . 5 11 11 Energy Gun 3 | . 14 9 1 . . . Energy Cannon 7 | . . 4 6 11 11 11 Ballistic Gun 12 | . 14 14 13 11 11 11 Peak Build Rating 28 | 6 8 16 19 21 28 28 Average Rating 16 | 4 7 11 16 16 22 28 On Entrance 13 | . 6 8 15 14 21 28 Naked Turns . | . . . . . . . Heaviest Build 26 | 11 15 20 24 26 26 26 Greatest Support 28 | 20 20 25 25 28 28 28 Greatest Overweight (x) 1 | . . . 1 1 . . Average Overweight (x) . | . . . . . . . Largest Inventory Capacity 8 | 8 8 5 5 5 5 5 Average Capacity 5 | 7 5 5 5 5 5 5 Most Carried 5 | 3 5 5 5 4 3 2 Average Carried 2 | 1 2 3 2 2 2 2 Final Capacity 8 | 8 5 5 5 5 5 5 Final Carried 5 | 2 5 4 3 2 2 2 Class Distribution -------------------- 65% | Mutant 34% | Scavenger-Mutant Dominant Class ---------------- Mutant | -10/Materials Mutant | -10/Mines Scavenger-Mutant | -9/Materials Mutant | -9/Mines Mutant | -9/Exiles Mutant | -8/Mines Resources | -11 -10 -10 -9 -9 -9 -8 ----------- Run | Yrd Mat Min Mat Min Exi Min Matter Collected 1220 | 158 79 150 642 150 . 41 Remotely . | . . . . . . . Salvage Created 1635 | . 121 149 1169 120 . 76 Parts 101 | . 8 5 69 6 . 13 Haulers Intercepted 1 | . . . 1 . . . Recyclers Shooed 1 | . 1 . . . . . Parts Field Recycled . | . . . . . . . Retrieved Matter . | . . . . . . . Parts Self-Destructed . | . . . . . . . Prevented . | . . . . . . . Kills | -11 -10 -10 -9 -9 -9 -8 ------- Run | Yrd Mat Min Mat Min Exi Min Combat Hostiles Destroyed 43 | . 2 4 29 4 . 4 Guns 24 | . 2 2 19 . . 1 Cannons 18 | . . 2 9 4 . 3 Classes Destroyed 11 | . 3 1 6 . . 1 Worker 3 | . . . 3 . . . Tunneler 1 | . . . . . . 1 Hauler 1 | . . . 1 . . . Recycler 2 | . . . 2 . . . Mechanic 1 | . 1 . . . . . Operator 1 | . 1 . . . . . Watcher 3 | . . . 3 . . . Swarmer 14 | . . . 9 1 . 4 Grunt 21 | . 2 3 13 3 . . Sentry 7 | . . . 7 . . . Assembled 1 | . . 1 . . . . Best Kill Streak 8 | . 3 2 8 2 . 5 Combat Bots Only 7 | . 2 2 7 2 . 4 Max Kills in Single Turn 2 | . 1 1 2 1 . 1 Gunslinging . | . . . . . . . Exploded . | . . . . . . . Melee . | . . . . . . . Uniques/NPCs Destroyed . | . . . . . . . Combat | -11 -10 -10 -9 -9 -9 -8 -------- Run | Yrd Mat Min Mat Min Exi Min Hostile Shots Fired 242 | . 16 9 129 46 . 42 Missed 65 | . 6 3 45 4 . 7 Hits 177 | . 10 6 84 42 . 35 Projectile 177 | . 10 6 84 42 . 35 Critical Strikes 6 | . 1 . 3 2 . . Damage Taken 2307 | . 94 64 1372 507 . 270 Core 409 | . 12 9 211 109 . 68 Absorbed by Shields 124 | . 37 24 63 . . . Regen/Repaired (Parts) 55 | . . . 55 . . . Core Remaining (%) 95 | 100 . 91 . . . . Volleys Fired 140 | . 19 9 90 12 . 10 Largest 2 | . 2 2 2 2 . 2 Hottest 100 | . 70 88 100 100 . 100 Shots Fired 254 | . 36 18 155 25 2 18 Gun 178 | . 36 9 112 11 1 9 Cannon 76 | . . 9 43 14 1 9 Launcher . | . . . . . . . Special . | . . . . . . . Kinetic 156 | . 19 9 107 11 1 9 Thermal 75 | . 17 . 34 14 1 9 Explosive . | . . . . . . . Electromagnetic 23 | . . 9 14 . . . Robot Hit Streak 13 | . 13 9 9 5 . 5 Robot Miss Streak 7 | . 2 1 7 3 . 5 Penetration Max . | . . . . . . . Secondary Targets 1 | . 1 . . . . . Max Gunslinging Chain 1 | . 1 . . . . . Shots Hit Robots 154 | . 24 11 95 17 . 7 Core Hits 78 | . 9 6 50 8 . 5 Critical Kills 2 | . 1 . 1 . . . Critical Parts Destroyed 1 | . . . . 1 . . Critical Strikes 7 | . 4 . 2 1 . . Burn 3 | . 3 . . . . . Destroy 3 | . 1 . 1 1 . . Corrupt 1 | . . . 1 . . . Melee Attacks . | . . . . . . . Impact . | . . . . . . . Slashing . | . . . . . . . Piercing . | . . . . . . . Sneak Attacks . | . . . . . . . Combat Hostiles . | . . . . . . . Follow-up Attacks . | . . . . . . . Damage Inflicted 3445 | . 284 272 2282 414 . 193 Guns 2056 | . 284 102 1465 162 . 43 Cannons 1183 | . . 123 660 250 . 150 Explosions 201 | . . 44 157 . . . Melee . | . . . . . . . Ramming 5 | . . 3 . 2 . . Kinetic 1871 | . 122 102 1442 162 . 43 Thermal 1186 | . 162 44 580 250 . 150 Explosive . | . . . . . . . Electromagnetic 383 | . . 123 260 . . . Impact . | . . . . . . . Slashing . | . . . . . . . Piercing . | . . . . . . . Highest Corruption 18 | . . . 18 18 18 18 Average Corruption 18 | . . . 18 18 18 18 Corruption Purged . | . . . . . . . Corruption Blocked . | . . . . . . . Effects 48 | . . . 6 9 29 4 Message Errors 10 | . . . . 2 8 . Matter Fused 10 | . . . 1 1 7 1 Heat Flow Errors 5 | . . . . 2 3 . Energy Discharges 3 | . . . . . 3 . Data Loss (minor) 7 | . . . 4 . 3 . Data Loss (major) 4 | . . . . 1 3 . Misfires 4 | . . . . 2 2 . Alerts 1 | . . . . . . 1 Weapon Failures 4 | . . . 1 1 . 2 Overload Shots . | . . . . . . . Overflow Damage 37 | . . . 37 . . . Projectiles . | . . . . . . . Explosions 37 | . . . 37 . . . Melee . | . . . . . . . Knockbacks . | . . . . . . . Impact . | . . . . . . . Kinetic . | . . . . . . . Secondary . | . . . . . . . Self-Inflicted Damage 133 | . . . 133 . . . Shots 2 | . . . 2 . . . Rammed . | . . . . . . . Targets Rammed 4 | . . 2 . 2 . . Kicked 4 | . . 2 . 2 . . Crushed . | . . . . . . . Highest Temperature 290 | . 168 290 69 281 273 81 Average Temperature 81 | . 61 126 17 129 102 44 Received Heat Transfer 667 | . 63 32 296 276 . . Effects 1 | . . . . 1 . . Energy Bleed 1 | . . . . 1 . . Siege Activations . | . . . . . . . Martial Activations . | . . . . . . . Shielding Activations . | . . . . . . . Robots Disrupted . | . . . . . . . Combat Hostiles . | . . . . . . . Robots Corrupted 1 | . . . 1 . . . Combat Hostiles 1 | . . . 1 . . . Parts Fried 5 | . . 2 3 . . . Impact Corruptions . | . . . . . . . Robots Melted . | . . . . . . . Combat Hostiles . | . . . . . . . Parts Melted 4 | . 2 . . 2 . . Heat Transferred 2087 | . 703 50 742 370 . 222 Parts Sabotaged . | . . . . . . . Parts Stolen . | . . . . . . . Parts Stripped . | . . . . . . . Power Chain Reactions 1 | . . 1 . . . . Alert | -11 -10 -10 -9 -9 -9 -8 ------- Run | Yrd Mat Min Mat Min Exi Min Maximum Alert Level 2 | . . . 2 . . . Low Security (%) 81 | 100 100 100 63 100 . 100 Level 1 13 | . . . 27 . . . Level 2 4 | . . . 9 . . . Level 3 . | . . . . . . . Level 4 . | . . . . . . . Level 5 . | . . . . . . . High Security . | . . . . . . . Max Security . | . . . . . . . Peak Influence 464 | . 50 51 464 182 . 88 Initial 178 | . . 13 16 178 . . Average 94 | . 9 5 151 166 . 28 Influence Increases 1255 | . 78 79 906 94 . 98 Destroy 0b10 Robot/C 840 | . 40 60 580 80 . 80 Destroy 0b10 Robot/NC 60 | . 10 . 45 . . 5 Destroy Leader 188 | . 10 10 148 10 . 10 Successful Hack 41 | . 18 . 23 . . . Disable Machine 60 | . . . 60 . . . Destroy Structure 66 | . . 9 50 4 . 3 Influence Decreases 1167 | . 43 71 491 390 162 10 Entered New Map 491 | . . 22 27 280 162 . Time Decay 557 | . 43 49 375 80 . 10 Lost Part 119 | . . . 89 30 . . Squads Dispatched 8 | . 3 1 3 1 . . Investigation 3 | . . 1 2 . . . Extermination . | . . . . . . . Reinforcement 5 | . 3 . 1 1 . . Assault . | . . . . . . . Garrison . | . . . . . . . Intercept . | . . . . . . . Searches Triggered . | . . . . . . . Construction Impeded 1 | . . . . 1 . . Haulers Reinforced . | . . . . . . . Active Scanning Responses . | . . . . . . . Cargo Convoy Interrupts . | . . . . . . . Stealth | -11 -10 -10 -9 -9 -9 -8 --------- Run | Yrd Mat Min Mat Min Exi Min Distress Signals 1 | . . . 1 . . . Communications Jammed . | . . . . . . . Distress Signals . | . . . . . . . Times Spotted 62 | . 6 7 35 10 . 4 Peak Tracking Total 8 | . 3 2 5 8 . 4 Tactical Retreats 1 | . . 1 . . . . Traps | -11 -10 -10 -9 -9 -9 -8 ------- Run | Yrd Mat Min Mat Min Exi Min Traps Triggered . | . . . . . . . Indirectly . | . . . . . . . Trap Hack Attempts . | . . . . . . . Triggered . | . . . . . . . Disarmed . | . . . . . . . Reprogrammed . | . . . . . . . Reused . | . . . . . . . Traps Extracted . | . . . . . . . Installed . | . . . . . . . Triggered . | . . . . . . . Machines | -11 -10 -10 -9 -9 -9 -8 ---------- Run | Yrd Mat Min Mat Min Exi Min Machines Disabled 4 | . . . 4 . . . Max in Single Turn 2 | . . . 2 . . . Machines Repaired . | . . . . . . . Machines Dismantled . | . . . . . . . Machines Sabotaged . | . . . . . . . Overloaded Fab Kills . | . . . . . . . Hacking | -11 -10 -10 -9 -9 -9 -8 --------- Run | Yrd Mat Min Mat Min Exi Min Machines Accessed 10 | . 2 1 7 . . . Terminals 6 | . 2 . 4 . . . Fabricators . | . . . . . . . Repair Stations 2 | . . . 2 . . . Recycling Units 1 | . . . 1 . . . Scanalyzers . | . . . . . . . Garrison Access . | . . . . . . . Total Hacks 36 | . 11 1 24 . . . Successful 20 | . 7 1 12 . . . Failed 16 | . 4 . 12 . . . Catastrophic 1 | . . . 1 . . . Database Lockouts . | . . . . . . . Manual 1 | . . . . . 1 . Terminals 28 | . 11 . 17 . . . Fabricators . | . . . . . . . Repair Stations 4 | . . . 4 . . . Recycling Units 3 | . . . 3 . . . Scanalyzers . | . . . . . . . Garrison Access . | . . . . . . . Terminal Hacks 17 | . 7 1 9 . . . Prototype ID Bank 2 | . 2 . . . . . Open Door 1 | . . 1 . . . . Emergency Access Points 1 | . . . 1 . . . Alert Level 3 | . 1 . 2 . . . Locate Traps 1 | . 1 . . . . . Dispatch Records 1 | . . . 1 . . . Maintenance Status 1 | . . . 1 . . . Security Status 2 | . 1 . 1 . . . Patrol Status 1 | . 1 . . . . . Recall Investigation 1 | . . . 1 . . . Zone Layout 3 | . 1 . 2 . . . Fabricator Hacks . | . . . . . . . Repair Station Hacks 2 | . . . 2 . . . Scan Component 1 | . . . 1 . . . Repair 1 | . . . 1 . . . Recycling Unit Hacks 1 | . . . 1 . . . Report Inventory 1 | . . . 1 . . . Scanalyzer . | . . . . . . . Garrison Access Hacks . | . . . . . . . Unauthorized Hacks . | . . . . . . . Terminals . | . . . . . . . Fabricators . | . . . . . . . Repair Stations . | . . . . . . . Recycling Units . | . . . . . . . Scanalyzers . | . . . . . . . Garrison Access . | . . . . . . . Data Cores Recovered . | . . . . . . . Used . | . . . . . . . Hacking Detections 8 | . 2 . 6 . . . Full Trace Events 2 | . . . 2 . . . Feedback Events . | . . . . . . . Feedback Blocked . | . . . . . . . Robot Schematics Acquired . | . . . . . . . Robots Built . | . . . . . . . Authchips . | . . . . . . . Time . | . . . . . . . Total Robot Build Rating . | . . . . . . . Part Schematics Acquired . | . . . . . . . Parts Built . | . . . . . . . Authchips . | . . . . . . . Time . | . . . . . . . Total Part Build Rating . | . . . . . . . Parts Repaired 1 | . . . 1 . . . Time 38 | . . . 38 . . . Parts Recycled . | . . . . . . . Recycled Matter . | . . . . . . . Retrieved Matter . | . . . . . . . Retrieved Components . | . . . . . . . Parts Scanalyzed . | . . . . . . . Part Schematics Acquired . | . . . . . . . Parts Damaged . | . . . . . . . Bothacking | -11 -10 -10 -9 -9 -9 -8 ------------ Run | Yrd Mat Min Mat Min Exi Min Used RIF Installer . | . . . . . . . Robots Hacked . | . . . . . . . Non-combat . | . . . . . . . Combat . | . . . . . . . Robot Hacks Applied . | . . . . . . . Relay Couplers Released . | . . . . . . . Fabnet Peak Effective % . | . . . . . . . Robots Rewired . | . . . . . . . Allies Hacked . | . . . . . . . Hacks Repelled . | . . . . . . . Allies | -11 -10 -10 -9 -9 -9 -8 -------- Run | Yrd Mat Min Mat Min Exi Min Total Allies . | . . . . . . . Largest Group . | . . . . . . . Highest-Rated Group . | . . . . . . . Highest-Rated Ally . | . . . . . . . Total Orders . | . . . . . . . Ally Attacks . | . . . . . . . Total Damage . | . . . . . . . Kills . | . . . . . . . Allies Corrupted . | . . . . . . . Allies Melted . | . . . . . . . Intel | -11 -10 -10 -9 -9 -9 -8 ------- Run | Yrd Mat Min Mat Min Exi Min Active Infowar (turns) 575 | . . . . 77 498 . Seismic 575 | . . . . 77 498 . Robot Analysis Total . | . . . . . . . Derelict Logs Recovered 1 | . . 1 . . . . Drone Launches 1 | . . . . . 1 . Drone Recoveries . | . . . . . . . Exploration | -11 -10 -10 -9 -9 -9 -8 ------------- Run | Yrd Mat Min Mat Min Exi Min Turns Passed 2513 | 57 204 476 947 179 614 36 Spaces Moved 1596 | 38 115 347 494 88 509 5 Core 5 | 5 . . . . . . Treads . | . . . . . . . Legs 1591 | 33 115 347 494 88 509 5 Wheels . | . . . . . . . Hover . | . . . . . . . Flight . | . . . . . . . Fastest Speed 50 | 50 120 120 120 120 120 120 Average Speed 120 | 110 120 120 120 130 120 120 Slowest Speed 190 | 120 120 120 190 190 120 120 Overloaded Moves . | . . . . . . . Propulsion Burnouts . | . . . . . . . Robots Hopped . | . . . . . . . Potential Cave-ins . | . . . . . . . Cave-ins Triggered 1 | . . . 1 . . . Exploration Rate (%) 36 | 3 22 71 43 19 90 5 Regions Visited 6 Branch Regions 4 Pre-discovered Areas 2 | . . 1 . 1 . . Known Exits Taken . | . . . . . . . Unknown Exits Taken 6 | 1 1 1 1 1 1 . Scrap Searched 2 | . . . . 2 . . Spaces Dug . | . . . . . . . Terrain Destroyed 69 | . . 11 50 4 1 3 Melee . | . . . . . . . Projectile 20 | . . . 12 4 1 3 AOE 49 | . . 11 38 . . . Terrain Rammed . | . . . . . . . Walls Destroyed . | . . . . . . . Machines Disabled . | . . . . . . . Actions | -11 -10 -10 -9 -9 -9 -8 --------- Run | Yrd Mat Min Mat Min Exi Min Total 1950 | 53 150 393 699 128 512 15 Wait 74 | . 7 9 58 . . . Move 1590 | 37 114 346 493 87 508 5 Hop . | . . . . . . . Pick Up 57 | 9 6 10 22 9 1 . Fast Attach . | . . . . . . . Attach 26 | 6 2 . 12 5 1 . Detach 2 | . . . 1 1 . . Swap 23 | . . 6 11 6 . . Drop 33 | 1 2 11 12 6 1 . Fire 140 | . 19 9 90 12 . 10 Melee . | . . . . . . . Ram . | . . . . . . . Kick 4 | . . 2 . 2 . . Crush . | . . . . . . . Escape Stasis . | . . . . . . . Rewire 1 | . . . . . 1 . Trap . | . . . . . . . Miscellaneous . | . . . . . . . Route ------- -11/Scrapyard -10/Materials -10/Mines -9/Materials -9/Mines (discovered 2 exits: [*Mat] / *Exi) -9/Exiles -8/Mines History --------- Turn | Location | Event 18 | -11/Scrapyard | Discovered new exit (range 16) 58 | -11/Scrapyard | Entered Materials 179 | -10/Materials | Discovered new exit (range 17) 262 | -10/Materials | Entered Mines 288 | -10/Mines | Received a Rocket Launcher from a helpful Derelict 307 | -10/Mines | Build established: Mutant 343 | -10/Mines | Met a Derelict bent on vengeance 344 | -10/Mines | Learned location of Zion (-7) 363 | -10/Mines | Assembled infested the area 550 | -10/Mines | Met a Derelict shopkeep closing up shop 722 | -10/Mines | Discovered new exit (range 10) 738 | -10/Mines | Entered Materials 738 | -9/Materials | Evolved 2 slots: Power x1, Utility x1 1030 | -9/Materials | Repaired Carbon-fiber Leg 1224 | -9/Materials | Build established: Scavenger-Mutant 1579 | -9/Materials | Destroyed 7 combat bots 1583 | -9/Materials | Discovered new exit (range 16) 1591 | -9/Materials | Crushed by falling debris 1591 | -9/Materials | Core integrity fell below 50% 1591 | -9/Materials | System corruption reached 10% 1625 | -9/Materials | Lost 5 parts (1p1n3u) 1685 | -9/Materials | Entered Mines 1730 | -9/Mines | Lost 3 parts (1n1u1w) 1839 | -9/Mines | Discovered new exit (range 9) 1841 | -9/Mines | Learned location of Storage (-9) 1859 | -9/Mines | Deemed a non-threat by the Exiles lab entrance 1859 | -9/Mines | Discovered new exit (range 5) 1864 | -9/Mines | Entered Exiles 1892 | -9/Exiles | Met 8R-AWN 1912 | -9/Exiles | Met EX-HEX 1966 | -9/Exiles | Met EX-DEC 1995 | -9/Exiles | Visited The Gauntlet 2068 | -9/Exiles | Build established: Mutant 2169 | -9/Exiles | Discovered new exit (range 14) 2297 | -9/Exiles | Met EX-BIN 2317 | -9/Exiles | Aligned with FarCom system 2318 | -9/Exiles | Given EX-Vault access code 2349 | -9/Exiles | Opened EX-Vault 2354 | -9/Exiles | Found Prototype Device 2363 | -9/Exiles | Identified Supersonic Drone Bay 2390 | -9/Exiles | Warned to stay clear of 0b10 Research branches 2401 | -9/Exiles | Exiles lab attacked by MAIN.C 2478 | -9/Exiles | Left Exiles lab with Supersonic Drone Bay 2478 | -9/Exiles | Entered Mines 2478 | -8/Mines | Accompanied by 1 ally 2487 | -8/Mines | Core integrity fell below 20% 2514 | -8/Mines | Self-destructed Last Messages --------------- LOCATION=UNKNOWN GOAL=ESCAPE 02478_ Receiving FarCom transmissions... 02480_ System corrupted: IFF burst signal emitted. 02480_ 5L-KAT: "That was close. Too bad in all the rush we got split up from the others." 02486_ T-07 Excavator destroyed. 02495_ 5L-KAT: "Oh no, it's like what happened to the Exiles when they were wandering homeless, only there's no Warlord to save us!" 02495_ System corrupted: Hvy. Particle Cannon failed to cycle. 02495_ S-10 Pest destroyed. 02496_ Acquired 11 matter. 02498_ S-10 Pest destroyed. 02504_ System corrupted: Matter fused (-8). 02504_ System corrupted: Hpw. Shotgun jammed. 02507_ S-10 Pest destroyed. 02513_ Acquired 30 matter. Map ----- +----------------------------------------------------+ | ?????????????????????????????????????? | | ?????????????????????????????????????? | | ?????????????????????????????????????? | | ?????????????????????????????????????? | | ?????????????????????????????????????? | | ?????????????????????????????????????? | | ?????????????????????????????????????? | | ?????????????????????????????????????? | | ?????????????????????????????????????? | | ?????????????????????????????????????? | | ?????????????????????????????????????? | | ?????????????????????????????????????? | | ?????????????????????????????????????? | | ?????????????????????????????????????? | | ?????????????????????????????????????? | | ?????????????????????????????????????? | | ?????????????????????????????????????? | | ?????????????????????????????????????? | | ?????????????????????????????###?????? | | ???????????????????????###### ##????? | | ??????????????????????## #????? | | ??????????????????????# #????? | | ??????????????????????# [[n ##????? | | ??????????????????????##=%= ###?????? | | ??????????????????????##*=####???????? | | ??????????????????????#%|@#??????????? | | ??????????????????????#==!#??????????? | | ??????????????????????##[[#??????????? | | ???????????????????????# #??????????? | | ??????????????????????? ;??????????? | | ??????????????????????? #??????????? | | ?????????????????????? ##??????????? | | ?????????????????????? #???????????? | | ????????????????????? ????????????? | | ????????????????????? ????????????? | | ???????????????????? ????????????? | | ????????????????????# ????????????? | | ????????????????????## ????????????? | | ?????????????????????# ????????????? | | ????????????????????? #????????????? | | ????????????????????? ?????????????? | | ????????????????????? ?????????????? | | ????????????????????? ?????????????? | | ????????????????????? ?????????????? | | ?????????????????????????????????????? | | ?????????????????????????????????????? | | ?????????????????????????????????????? | | ?????????????????????????????????????? | | ?????????????????????????????????????? | | ?????????????????????????????????????? | +----------------------------------------------------+ Best States ------------- Heat Dissipation 52 Energy Generation 19 Energy Capacity 525 Matter Stores 300 Matter Capacity 300 Sight Range 16 Terrain Scan Density 10 Armor Coverage 225 Evasion (%) 55 Targeting Accuracy 6 Item Schematics ----------------- None Robot Schematics ------------------ None Fabricated ------------ Nothing Repaired ---------- Carbon-fiber Leg | 50% | -9/Materials Alien Tech Used ----------------- None Achievements -------------- Unlikely Earthworm Challenges ------------ None Game ------ Seed ZhirovFireChainsword Manual? 0 Play Time 00:26:18 Cumulative 7.8 hours Start 2025.10.09 @ 16:37:41 End 2025.10.09 @ 17:03:32 Sessions 1 Manual Loads 0 Difficulty Rogue Special Mode None Game No. 11 Rogue 11 Adventurer 0 Explorer 0 Win Type - Total 0 Types 0/0/0/0/0/0/0/0/0/0 Lore% 10 Gallery% 13 Achievement% 13 Wizard Run 0 Options --------- Layout 1 ASCII 0 Keyboard 0 Movement Mouse Keybinds 0 Fullscreen 2 Font 24/Proggy Map View 50x35 Zoom Use 0% Tactical HUD 1 Map Filters NONE Filters NONE Steam 1 RUN: 2fe4eac0-3d4f-47a6-b924-817370fb91a4